{"text_format":"1","workbook":"xlsx","n_sheets":3,"sheets":["معلومات المدرسة","التلاميذ","البطاقة"],"not_rendered":{"charts":0,"images":1,"macros":1,"external_links":0,"defined_names":3,"comments":0,"pivot_tables":0},"unopened":[],"bounds":{"document_bytes":16777216,"sheet_cells":100000,"rows_first":2000,"rows_last":500,"rows_between":2000,"halvings":0,"cell_chars":16384,"cell_head_chars":4096},"cells_cut":0,"cells_raw":0,"read":"whole","date_system":"1900"}

{"sheet":"معلومات المدرسة","index":0,"n_rows":6,"n_cols":2,"rows_kept":6,"cut":false,"hidden":false,"merged":[]}
[null,"المبرمج : مناد سفيان يرحب بكم"]
["ولايــــــــــــــــــة","تيارت"]
["دائــــــــــــــــــرة","الواد ي"]
["بلديــــــــــــــــــة","دلس"]
["السنة الدراسية","2017/2018"]
["اســم المؤسسة","حيرش قادة"]

{"sheet":"التلاميذ","index":1,"n_rows":102,"n_cols":8,"rows_kept":102,"cut":false,"hidden":false,"merged":[]}
[]
["الرقم","اللقب","الإسم","رقم التسجيل"," تاريخ الميلاد","مكان الميلاد","قسم"]
[1,"فكروني"," موسى",2787,"2000-01-05","بوسعادة","الخامسة أ",{"$f":"CONCATENATE(B3,\" \",C3)","v":"فكروني  موسى"}]
[2,"بوشنافة"," الجيلاني",2871,"2001-05-04","ع الملح","الخامسة أ","بوشنافة  الجيلاني"]
[3,"اعمارة"," محمد",2938,"2002-01-05","ع الملح","الخامسة أ","اعمارة  محمد"]
[4,"بوشنافة"," حدة",2951,"2002-08-09","ع الملح","الخامسة أ","بوشنافة  حدة"]
[5,"عبد الكريم","أنور",2961,"2002-06-28","جبل امساعد","الخامسة أ","عبد الكريم أنور"]
[6,"نعنوعة"," صهيب",2973,"2002-04-09","ع الملح","الخامسة أ","نعنوعة  صهيب"]
[7,"لقليطي"," محمد الامين",3005,"2003-01-26","ع الملح","الخامسة أ","لقليطي  محمد الامين"]
[8,"عبد الكريم"," سفيان",3006,"2003-05-09","ع الملح","الخامسة أ","عبد الكريم  سفيان"]
[9,"بن قسمية","اكرم",3007,"2003-03-04","ع الملح","الخامسة أ","بن قسمية اكرم"]
[10,"فكروني"," محمد",3009,"2003-01-01","بوسعادة","الخامسة أ","فكروني  محمد"]
[11,"بن كروش","القاسيمي",3010,"2003-01-09","ع الملح","الخامسة أ","بن كروش القاسيمي"]
[12,"بن كروش","عبد الرحمان",3011,"2003-12-03","بوسعادة","الخامسة أ","بن كروش عبد الرحمان"]
[13,"عثماني","عبد الغني",3012,"2003-08-09","بوسعادة","الخامسة أ","عثماني عبد الغني"]
[14,"بكاي"," ايمن",3013,"2003-08-03","ع الملح","الخامسة أ","بكاي  ايمن"]
[15,"لعميد"," عبد الرزاق",3015,"2003-04-16","ع الملح","الخامسة أ","لعميد  عبد الرزاق"]
[16,"حيدش","احمد عبد السلام",3016,"2003-12-11","بوسعادة","الخامسة أ","حيدش احمد عبد السلام"]
[17,"بن اعمر","موسى",3019,"2002-08-15","ع الملح","الخامسة أ","بن اعمر موسى"]
[18,"بوشنافة"," امينة",3022,"2003-08-26","ع الملح","الخامسة أ","بوشنافة  امينة"]
[19,"عبد الكريم","نسرين / عيسى",3023,"2003-10-03","ع الملح","الخامسة أ","عبد الكريم نسرين / عيسى"]
[20,"فكروني"," شيماء",3026,"2003-07-21","ع الملح","الخامسة أ","فكروني  شيماء"]
[21,"بن اعمر","شهرة",3027,"2003-12-26","ع الملح","الخامسة أ","بن اعمر شهرة"]
[22,"بوشنافة"," سيدي علي",3033,"2001-11-07","ع الملح","الخامسة أ","بوشنافة  سيدي علي"]
[23,"سعدون"," هشام",3062,"2004-01-13","بوسعادة","الخامسة أ","سعدون  هشام"]
[24,"لقرادة"," عيسى",3063,"2004-01-10","ج م","الخامسة أ","لقرادة  عيسى"]
[25,"قويدري"," عيسى",3119,"2003-02-25","بوسعادة","الخامسة أ","قويدري  عيسى"]
[26,"صيد"," عبير",3127,"2001-11-07","بوسعادة","الخامسة أ","صيد  عبير"]
[27,"ارفيس","ادريس اسلام الدين",3145,"2003-08-02","ع الملح","الخامسة أ","ارفيس ادريس اسلام الدين"]
[28,"ارفيس"," فاطنة",3146,"2003-07-19","جبل امساعد","الخامسة أ","ارفيس  فاطنة"]
[29,"بن رية","خديجة",3181,"2003-04-02","بوسعادة","الخامسة أ","بن رية خديجة"]
[30,"ذباح"," عبد الحميد",3192,"2003-01-09","بوسعادة","الخامسة أ","ذباح  عبد الحميد"]
[31,"بن قسمية","فريال",3237,"2003-05-19","بوسعادة","الخامسة أ","بن قسمية فريال"]
[32,"ارفيس"," رزيقة",3320,"2000-05-25","ع الملح","الخامسة أ","ارفيس  رزيقة"]
[33,"بلواضح"," هاجر",3325,"2003-02-03","بوسعادة","الخامسة أ",{"$f":"CONCATENATE(B35,\" \",C35)","v":"بلواضح  هاجر"}]
[34,"اوريدة"," رابح",3326,"2003-04-05","جبل امساعد","الخامسة أ","اوريدة  رابح"]
[35,"بادة"," محمد / المختار",3335,"2000-12-31","بوسعادة","الخامسة أ","بادة  محمد / المختار"]
[36,"نويبات"," محمد الصادق",3534,"2002-08-18","بوسعادة","الخامسة أ","نويبات  محمد الصادق"]
[37,"بن علية","سمير",2550,"1998-03-14","ج امساعد","الخامسة ب","بن علية سمير"]
[38,"قادري"," صلاح الدين",2743,"2000-04-15","ع الملح","الخامسة ب","قادري  صلاح الدين"]
[39,"لعميد"," عبد العزيز",2834,"2001-01-13","ع الملح","الخامسة ب","لعميد  عبد العزيز"]
[40,"لسلت"," خليل",2866,"2001-07-28","ع الملح","الخامسة ب","لسلت  خليل"]
[41,"لقرادة"," اسماء",2887,"2001-10-23","ج امساعد","الخامسة ب","لقرادة  اسماء"]
[42,"بوشنافة"," احمد",3034,"2003-04-06","بوسعادة","الخامسة ب","بوشنافة  احمد"]
[43,"خارف"," عبد الله",3035,"2003-04-05","ج امساعد","الخامسة ب","خارف  عبد الله"]
[44,"بوشنافة"," زهير",3036,"2003-07-16","ع الملح","الخامسة ب","بوشنافة  زهير"]
[45,"بوشنافة"," ايمن",3037,"2003-10-28","ع الملح","الخامسة ب","بوشنافة  ايمن"]
[46,"بكاي"," يوسف",3038,"2003-02-03","ع الملح","الخامسة ب","بكاي  يوسف"]
[47,"بادة"," محمد / لخضر",3039,"2003-11-01","ج امساعد","الخامسة ب","بادة  محمد / لخضر"]
[48,"بن كروش","خالد",3040,"2003-03-23","ع الملح","الخامسة ب","بن كروش خالد"]
[49,"بن رية","عمر اشرف",3041,"2003-01-25","بوسعادة","الخامسة ب","بن رية عمر اشرف"]
[50,"لسلت"," عمر",3042,"2003-07-09","ع الملح","الخامسة ب","لسلت  عمر"]
[51,"فكروني"," محمد",3044,"2003-12-05","ع الملح","الخامسة ب","فكروني  محمد"]
[52,"بوشنافة"," السعدية",3049,"2003-09-30","ع الملح","الخامسة ب","بوشنافة  السعدية"]
[53,"بوشعالة","مروة",3050,"2003-01-26","بوسعادة","الخامسة ب","بوشعالة مروة"]
[54,"بكاي"," امال",3051,"2003-08-09","ع الملح","الخامسة ب","بكاي  امال"]
[55,"بن رية"," خيرة",3052,"2003-01-26","ج امساعد","الخامسة ب","بن رية  خيرة"]
[56,"لسلت"," ايمان",3054,"2003-07-30","ع الملح","الخامسة ب","لسلت  ايمان"]
[57,"عمارة"," بنت اسعيد",3055,"2003-02-10","ج امساعد","الخامسة ب","عمارة  بنت اسعيد"]
[58,"بكاي","صبرينة",3056,"2003-10-26","ع الملح","الخامسة ب","بكاي صبرينة"]
[59,"سعودي"," شيماء",3057,"2003-06-08","ج امساعد","الخامسة ب","سعودي  شيماء"]
[60,"اعمارة","اعمارة نوال",3060,"2002-11-10","ع الملح","الخامسة ب","اعمارة اعمارة نوال"]
[61,"مغربي"," رحاب",3061,"2003-12-01","قاديرية","الخامسة ب","مغربي  رحاب"]
[62,"بوشعالة","صفاء",3066,"2004-02-04","بوسعادة","الخامسة ب","بوشعالة صفاء"]
[63,"خارف"," بشرى",3067,"2004-02-05","بوسعادة","الخامسة ب","خارف  بشرى"]
[64,"براهيمي"," جمال",3125,"2003-05-03","ع الملح","الخامسة ب","براهيمي  جمال"]
[65,"بن اعمر","عبد الحق",3142,"2003-03-28","بوسعادة","الخامسة ب",{"$f":"CONCATENATE(B67,\" \",C67)","v":"بن اعمر عبد الحق"}]
[66,"ناجوي"," سارة",3236,"2003-03-12","بوسعادة","الخامسة ب","ناجوي  سارة"]
[67,"طيبي"," خضرة آلاء",3332,"2004-02-13","بوسعادة","الخامسة ب","طيبي  خضرة آلاء"]
[68,"سعدي"," رباب",3343,"2001-09-06","ع الملح","الخامسة ب","سعدي  رباب"]
[69,"مردف"," عائشة",3421,"2004-02-29","بوسعادة","الخامسة ب","مردف  عائشة"]
[70,"بوشنافة"," فاطمة الزهراء",3425,"2003-12-16","ع الملح","الخامسة ب","بوشنافة  فاطمة الزهراء"]
[71,"ذباح"," سهام",3441,"2003-07-21","ع الملح","الخامسة ب","ذباح  سهام"]
[72,"نويبات"," هيثم",3535,"2004-02-23","بوسعادة","الخامسة ب","نويبات  هيثم"]
[73,null,null,null,null,null,null," "]
[74,null,null,null,null,null,null," "]
[75,null,null,null,null,null,null," "]
[76,null,null,null,null,null,null," "]
[77,null,null,null,null,null,null," "]
[78,null,null,null,null,null,null," "]
[79,null,null,null,null,null,null," "]
[80,null,null,null,null,null,null," "]
[81,null,null,null,null,null,null," "]
[82,null,null,null,null,null,null," "]
[83,null,null,null,null,null,null," "]
[84,null,null,null,null,null,null," "]
[85,null,null,null,null,null,null," "]
[86,null,null,null,null,null,null," "]
[87,null,null,null,null,null,null," "]
[88,null,null,null,null,null,null," "]
[89,null,null,null,null,null,null," "]
[90,null,null,null,null,null,null," "]
[91,null,null,null,null,null,null," "]
[92,null,null,null,null,null,null," "]
[93,null,null,null,null,null,null," "]
[94,null,null,null,null,null,null," "]
[95,null,null,null,null,null,null," "]
[96,null,null,null,null,null,null," "]
[97,null,null,null,null,null,null," "]
[98,null,null,null,null,null,null," "]
[99,null,null,null,null,null,null," "]
[100,null,null,null,null,null,null," "]

{"sheet":"البطاقة","index":2,"n_rows":36,"n_cols":32,"rows_kept":36,"cut":false,"hidden":false,"merged":[[34,1,34,4],[34,7,34,10],[34,13,34,16],[34,19,34,22],[35,3,35,4],[35,9,35,10],[35,15,35,16],[35,21,35,22],[32,19,32,20],[33,1,33,3],[33,7,33,9],[33,13,33,15],[33,19,33,21],[32,1,32,2],[32,7,32,8],[32,13,32,14],[30,19,30,20],[30,21,30,22],[31,1,31,2],[31,3,31,4],[31,7,31,8],[31,9,31,10],[31,13,31,14],[31,15,31,16],[31,19,31,20],[31,21,31,22],[30,1,30,2],[30,3,30,4],[30,7,30,8],[30,9,30,10],[30,13,30,14],[30,15,30,16],[29,1,29,4],[29,7,29,10],[29,13,29,16],[29,19,29,22],[21,1,21,4],[21,7,21,10],[21,13,21,16],[21,19,21,22],[22,1,22,4],[22,7,22,10],[22,13,22,16],[22,19,22,22],[24,2,24,3],[25,2,25,3],[26,2,26,3],[27,2,27,3],[28,2,28,3],[24,14,24,15],[25,14,25,15],[26,14,26,15],[20,1,20,4],[20,7,20,10],[20,13,20,16],[20,19,20,22],[15,1,15,4],[15,7,15,10],[15,13,15,16],[23,1,23,4],[23,7,23,10],[23,13,23,16],[23,19,23,22],[14,1,14,3],[14,7,14,9],[14,13,14,15],[14,19,14,21],[13,1,13,2],[13,7,13,8],[13,13,13,14],[15,19,15,22],[16,3,16,4],[16,9,16,10],[16,15,16,16],[16,21,16,22],[12,1,12,2],[12,3,12,4],[12,7,12,8],[12,9,12,10],[12,13,12,14],[12,15,12,16],[12,19,12,20],[12,21,12,22],[13,19,13,20],[10,1,10,4],[10,7,10,10],[10,13,10,16],[10,19,10,22],[11,1,11,2],[11,3,11,4],[11,7,11,8],[11,9,11,10],[11,13,11,14],[11,15,11,16],[11,19,11,20],[11,21,11,22],[3,1,3,4],[3,7,3,10],[3,13,3,16],[3,19,3,22],[4,1,4,4],[4,7,4,10],[4,13,4,16],[4,19,4,22],[1,1,1,4],[1,7,1,10],[1,13,1,16],[1,19,1,22],[2,1,2,4],[2,7,2,10],[2,13,2,16],[2,19,2,22],[5,2,5,3],[6,2,6,3],[7,2,7,3],[8,2,8,3],[9,2,9,3],[5,8,5,9],[6,8,6,9],[7,8,7,9],[8,8,8,9],[9,8,9,9],[27,14,27,15],[28,14,28,15],[24,20,24,21],[25,20,25,21],[26,20,26,21],[27,20,27,21],[28,20,28,21],[5,14,5,15],[6,14,6,15],[7,14,7,15],[8,14,8,15],[9,14,9,15],[5,20,5,21],[6,20,6,21],[7,20,7,21],[8,20,8,21],[9,20,9,21]]}
[]
[null,"الجمهورية الجزائرية الديمقراطية الشعبية",null,null,null,null,null,"الجمهورية الجزائرية الديمقراطية الشعبية",null,null,null,null,null,"الجمهورية الجزائرية الديمقراطية الشعبية",null,null,null,null,null,"الجمهورية الجزائرية الديمقراطية الشعبية",null,null,null,null,null,null,null,null,null,null,null,65]
[null,"وزارة التربية الوطنية",null,null,null,null,null,"وزارة التربية الوطنية",null,null,null,null,null,"وزارة التربية الوطنية",null,null,null,null,null,"وزارة التربية الوطنية",null,null,null,null,null,null,null,null,null,null,null,{"$f":"AF2+1","v":66}]
[null,"بطـــاقة التعريف المــدرسية",null,null,null,null,null,"بطـــاقة التعريف المــدرسية",null,null,null,null,null,"بطـــاقة التعريف المــدرسية",null,null,null,null,null,"بطـــاقة التعريف المــدرسية",null,null,null,null,null,null,null,null,null,null,null,{"$f":"AF3+1","v":67}]
[null,"CARTE D'IDENTITE SCOLAIRE",null,null,null,null,null,"CARTE D'IDENTITE SCOLAIRE",null,null,null,null,null,"CARTE D'IDENTITE SCOLAIRE",null,null,null,null,null,"CARTE D'IDENTITE SCOLAIRE",null,null,null,null,null,null,null,null,null,null,null,68]
[null,"ولايــــــــــــــــة:",{"$f":"'معلومات المدرسة'!$B$2","v":"تيارت"},null,null,null,null,"ولايــــــــــــــــة:",{"$f":"'معلومات المدرسة'!$B$2","v":"تيارت"},null,null,null,null,"ولايــــــــــــــــة:",{"$f":"'معلومات المدرسة'!$B$2","v":"تيارت"},null,null,null,null,"ولايــــــــــــــــة:",{"$f":"'معلومات المدرسة'!$B$2","v":"تيارت"},null,null,null,null,null,null,null,null,null,null,69]
[null,"دائــــــــــــــــرة:",{"$f":"'معلومات المدرسة'!$B$3","v":"الواد ي"},null,null,null,null,"دائــــــــــــــــرة:",{"$f":"'معلومات المدرسة'!$B$3","v":"الواد ي"},null,null,null,null,"دائــــــــــــــــرة:",{"$f":"'معلومات المدرسة'!$B$3","v":"الواد ي"},null,null,null,null,"دائــــــــــــــــرة:",{"$f":"'معلومات المدرسة'!$B$3","v":"الواد ي"},null,null,null,null,null,null,null,null,null,null,70]
[null,"بلديــــــــــــــــة:",{"$f":"'معلومات المدرسة'!$B$4","v":"دلس"},null,null,null,null,"بلديــــــــــــــــة:",{"$f":"'معلومات المدرسة'!$B$4","v":"دلس"},null,null,null,null,"بلديــــــــــــــــة:",{"$f":"'معلومات المدرسة'!$B$4","v":"دلس"},null,null,null,null,"بلديــــــــــــــــة:",{"$f":"'معلومات المدرسة'!$B$4","v":"دلس"},null,null,null,null,null,null,null,null,null,null,71]
[null,"السنة الدراسية:",{"$f":"'معلومات المدرسة'!$B$5","v":"2017/2018"},null,null,null,null,"السنة الدراسية:",{"$f":"'معلومات المدرسة'!$B$5","v":"2017/2018"},null,null,null,null,"السنة الدراسية:",{"$f":"'معلومات المدرسة'!$B$5","v":"2017/2018"},null,null,null,null,"السنة الدراسية:",{"$f":"'معلومات المدرسة'!$B$5","v":"2017/2018"},null,null,null,null,null,null,null,null,null,null,72]
[null,"اســم المؤسسة:",{"$f":"'معلومات المدرسة'!$B$6","v":"حيرش قادة"},null,null,null,null,"اســم المؤسسة:",{"$f":"'معلومات المدرسة'!$B$6","v":"حيرش قادة"},null,null,null,null,"اســم المؤسسة:",{"$f":"'معلومات المدرسة'!$B$6","v":"حيرش قادة"},null,null,null,null,"اســم المؤسسة:",{"$f":"'معلومات المدرسة'!$B$6","v":"حيرش قادة"}]
[null,"أنا الممضي(ة) أدناه بصفتي مدير(ة) المدرسة المذكورة أعلاه",null,null,null,null,null,"أنا الممضي(ة) أدناه بصفتي مدير(ة) المدرسة المذكورة أعلاه",null,null,null,null,null,"أنا الممضي(ة) أدناه بصفتي مدير(ة) المدرسة المذكورة أعلاه",null,null,null,null,null,"أنا الممضي(ة) أدناه بصفتي مدير(ة) المدرسة المذكورة أعلاه"]
[null,"أشهد أن التلميذ(ة):",null,{"$f":"VLOOKUP($AF$2,Plage,8)","v":"بن اعمر عبد الحق"},null,null,null,"أشهد أن التلميذ(ة):",null,{"$f":"VLOOKUP($AF$3,Plage,8)","v":"ناجوي  سارة"},null,null,null,"أشهد أن التلميذ(ة):",null,{"$f":"VLOOKUP($AF$4,Plage,8)","v":"طيبي  خضرة آلاء"},null,null,null,"أشهد أن التلميذ(ة):",null,{"$f":"VLOOKUP($AF$5,Plage,8)","v":"سعدي  رباب"}]
[null,"رقم التسجيل:",null,{"$f":"VLOOKUP($AF$2,Plage,4)","v":3142},null,null,null,"رقم التسجيل:",null,{"$f":"VLOOKUP($AF$3,Plage,4)","v":3236},null,null,null,"رقم التسجيل:",null,{"$f":"VLOOKUP($AF$4,Plage,4)","v":3332},null,null,null,"رقم التسجيل:",null,{"$f":"VLOOKUP($AF$5,Plage,4)","v":3343}]
[null,"المولود(ة) بتاريخ: ",null,{"$f":"VLOOKUP($AF$2,Plage,5)","v":"2003-03-28"},{"$f":"\"بـ \"&VLOOKUP($AF$2,Plage,6)","v":"بـ بوسعادة"},null,null,"المولود(ة) بتاريخ: ",null,{"$f":"VLOOKUP($AF$3,Plage,5)","v":"2003-03-12"},{"$f":"\"بـ \"&VLOOKUP($AF$3,Plage,6)","v":"بـ بوسعادة"},null,null,"المولود(ة) بتاريخ: ",null,{"$f":"VLOOKUP($AF$4,Plage,5)","v":"2004-02-13"},{"$f":"\"بـ \"&VLOOKUP($AF$4,Plage,6)","v":"بـ بوسعادة"},null,null,"المولود(ة) بتاريخ: ",null,{"$f":"VLOOKUP($AF$5,Plage,5)","v":"2001-09-06"},{"$f":"\"بـ \"&VLOOKUP($AF$5,Plage,6)","v":"بـ ع الملح"}]
[null,"متمدرس(ة) بالمؤسسة في قسم السنة:",null,null,{"$f":"VLOOKUP($AF$2,Plage,7)","v":"الخامسة ب"},null,null,"متمدرس(ة) بالمؤسسة في قسم السنة:",null,null,{"$f":"VLOOKUP($AF$3,Plage,7)","v":"الخامسة ب"},null,null,"متمدرس(ة) بالمؤسسة في قسم السنة:",null,null,{"$f":"VLOOKUP($AF$4,Plage,7)","v":"الخامسة ب"},null,null,"متمدرس(ة) بالمؤسسة في قسم السنة:",null,null,{"$f":"VLOOKUP($AF$5,Plage,7)","v":"الخامسة ب"}]
[null,"خلال السنة الدراسية الحالية.",null,null,null,null,null,"خلال السنة الدراسية الحالية.",null,null,null,null,null,"خلال السنة الدراسية الحالية.",null,null,null,null,null,"خلال السنة الدراسية الحالية."]
[null,null,null,"إمضاء المدير(ة)",null,null,null,null,null,"إمضاء المدير(ة)",null,null,null,null,null,"إمضاء المدير(ة)",null,null,null,null,null,"إمضاء المدير(ة)"]
[]
[]
[]
[null,"الجمهورية الجزائرية الديمقراطية الشعبية",null,null,null,null,null,"الجمهورية الجزائرية الديمقراطية الشعبية",null,null,null,null,null,"الجمهورية الجزائرية الديمقراطية الشعبية",null,null,null,null,null,"الجمهورية الجزائرية الديمقراطية الشعبية"]
[null,"وزارة التربية الوطنية",null,null,null,null,null,"وزارة التربية الوطنية",null,null,null,null,null,"وزارة التربية الوطنية",null,null,null,null,null,"وزارة التربية الوطنية"]
[null,"بطـــاقة التعريف المــدرسية",null,null,null,null,null,"بطـــاقة التعريف المــدرسية",null,null,null,null,null,"بطـــاقة التعريف المــدرسية",null,null,null,null,null,"بطـــاقة التعريف المــدرسية"]
[null,"CARTE D'IDENTITE SCOLAIRE",null,null,null,null,null,"CARTE D'IDENTITE SCOLAIRE",null,null,null,null,null,"CARTE D'IDENTITE SCOLAIRE",null,null,null,null,null,"CARTE D'IDENTITE SCOLAIRE"]
[null,"ولايــــــــــــــــة:",{"$f":"'معلومات المدرسة'!$B$2","v":"تيارت"},null,null,null,null,"ولايــــــــــــــــة:",null,null,null,null,null,"ولايــــــــــــــــة:",{"$f":"'معلومات المدرسة'!$B$2","v":"تيارت"},null,null,null,null,"ولايــــــــــــــــة:",{"$f":"'معلومات المدرسة'!$B$2","v":"تيارت"}]
[null,"دائــــــــــــــــرة:",{"$f":"'معلومات المدرسة'!$B$3","v":"الواد ي"},null,null,null,null,"دائــــــــــــــــرة:",null,null,null,null,null,"دائــــــــــــــــرة:",{"$f":"'معلومات المدرسة'!$B$3","v":"الواد ي"},null,null,null,null,"دائــــــــــــــــرة:",{"$f":"'معلومات المدرسة'!$B$3","v":"الواد ي"}]
[null,"بلديــــــــــــــــة:",{"$f":"'معلومات المدرسة'!$B$4","v":"دلس"},null,null,null,null,"بلديــــــــــــــــة:",null,null,null,null,null,"بلديــــــــــــــــة:",{"$f":"'معلومات المدرسة'!$B$4","v":"دلس"},null,null,null,null,"بلديــــــــــــــــة:",{"$f":"'معلومات المدرسة'!$B$4","v":"دلس"}]
[null,"السنة الدراسية:",{"$f":"'معلومات المدرسة'!$B$5","v":"2017/2018"},null,null,null,null,"السنة الدراسية:",null,null,null,null,null,"السنة الدراسية:",{"$f":"'معلومات المدرسة'!$B$5","v":"2017/2018"},null,null,null,null,"السنة الدراسية:",{"$f":"'معلومات المدرسة'!$B$5","v":"2017/2018"}]
[null,"اســم المؤسسة:",{"$f":"'معلومات المدرسة'!$B$6","v":"حيرش قادة"},null,null,null,null,"اســم المؤسسة:",null,null,null,null,null,"اســم المؤسسة:",{"$f":"'معلومات المدرسة'!$B$6","v":"حيرش قادة"},null,null,null,null,"اســم المؤسسة:",{"$f":"'معلومات المدرسة'!$B$6","v":"حيرش قادة"}]
[null,"أنا الممضي(ة) أدناه بصفتي مدير(ة) المدرسة المذكورة أعلاه",null,null,null,null,null,"أنا الممضي(ة) أدناه بصفتي مدير(ة) المدرسة المذكورة أعلاه",null,null,null,null,null,"أنا الممضي(ة) أدناه بصفتي مدير(ة) المدرسة المذكورة أعلاه",null,null,null,null,null,"أنا الممضي(ة) أدناه بصفتي مدير(ة) المدرسة المذكورة أعلاه"]
[null,"أشهد أن التلميذ(ة):",null,{"$f":"VLOOKUP($AF$6,Plage,8)","v":"مردف  عائشة"},null,null,null,"أشهد أن التلميذ(ة):",null,{"$f":"VLOOKUP($AF$7,Plage,8)","v":"بوشنافة  فاطمة الزهراء"},null,null,null,"أشهد أن التلميذ(ة):",null,{"$f":"VLOOKUP($AF$8,Plage,8)","v":"ذباح  سهام"},null,null,null,"أشهد أن التلميذ(ة):",null,{"$f":"VLOOKUP($AF$9,Plage,8)","v":"نويبات  هيثم"}]
[null,"رقم التسجيل:",null,{"$f":"VLOOKUP($AF$6,Plage,4)","v":3421},null,null,null,"رقم التسجيل:",null,{"$f":"VLOOKUP($AF$7,Plage,4)","v":3425},null,null,null,"رقم التسجيل:",null,{"$f":"VLOOKUP($AF$8,Plage,4)","v":3441},null,null,null,"رقم التسجيل:",null,{"$f":"VLOOKUP($AF$9,Plage,4)","v":3535}]
[null,"المولود(ة) بتاريخ: ",null,{"$f":"VLOOKUP($AF$6,Plage,5)","v":"2004-02-29"},{"$f":"\"بـ \"&VLOOKUP($AF$6,Plage,6)","v":"بـ بوسعادة"},null,null,"المولود(ة) بتاريخ: ",null,{"$f":"VLOOKUP($AF$7,Plage,5)","v":"2003-12-16"},{"$f":"\"بـ \"&VLOOKUP($AF$7,Plage,6)","v":"بـ ع الملح"},null,null,"المولود(ة) بتاريخ: ",null,{"$f":"VLOOKUP($AF$8,Plage,5)","v":"2003-07-21"},{"$f":"\"بـ \"&VLOOKUP($AF$8,Plage,6)","v":"بـ ع الملح"},null,null,"المولود(ة) بتاريخ: ",null,{"$f":"VLOOKUP($AF$9,Plage,5)","v":"2004-02-23"},{"$f":"\"بـ \"&VLOOKUP($AF$9,Plage,6)","v":"بـ بوسعادة"}]
[null,"متمدرس(ة) بالمؤسسة في قسم السنة:",null,null,{"$f":"VLOOKUP($AF$6,Plage,7)","v":"الخامسة ب"},null,null,"متمدرس(ة) بالمؤسسة في قسم السنة:",null,null,{"$f":"VLOOKUP($AF$7,Plage,7)","v":"الخامسة ب"},null,null,"متمدرس(ة) بالمؤسسة في قسم السنة:",null,null,{"$f":"VLOOKUP($AF$8,Plage,7)","v":"الخامسة ب"},null,null,"متمدرس(ة) بالمؤسسة في قسم السنة:",null,null,{"$f":"VLOOKUP($AF$9,Plage,7)","v":"الخامسة ب"}]
[null,"خلال السنة الدراسية الحالية.",null,null,null,null,null,"خلال السنة الدراسية الحالية.",null,null,null,null,null,"خلال السنة الدراسية الحالية.",null,null,null,null,null,"خلال السنة الدراسية الحالية."]
[null,null,null,"إمضاء المدير(ة)",null,null,null,null,null,"إمضاء المدير(ة)",null,null,null,null,null,"إمضاء المدير(ة)",null,null,null,null,null,"إمضاء المدير(ة)"]